Cogmind - Beta 14 *** ADVENTURER MODE // 2024.08.16 @ 20:42:58 Player: KURIIRI Result: Self-destructed Performance ------------- Evolutions (1) 500 Regions Visited (3) 600 Robots Destroyed (50) 250 Value Destroyed (1083) 1083 Prototype IDs (7) 140 Alien Tech Used (0) 0 Bonus (0) 0 TOTAL SCORE: 2573 Bonus ------- None Cogmind --------- Core Integrity 182/400 Matter 191/300 Energy 100/100 System Corruption 0% Temperature Hot (292) Movement Core (550) Ox10 Location -9/Mines Parts ------- > --- POWER (1) -------- Ion Engine > --- PROPULSION (2) --- (None) > --- UTILITY (3) ------ Large Storage Unit Weight Redist. System > --- WEAPON (3) ------- Improved Medium Laser Improved Medium Laser > --- INVENTORY (15) --- Light Treads Heat Sink Targeting Computer Medium Armor Plating Medium Armor Plating Shield Generator Hacking Suite Improved Medium Laser Improved Medium Laser Mining Claw Peak State ------------ > --- POWER ------------ Ion Engine > --- PROPULSION ------- Light Treads Improved Treads > --- UTILITY ---------- Large Storage Unit Weight Redist. System Medium Armor Plating > --- WEAPON ----------- Improved Medium Laser Improved Medium Laser Improved Medium Laser > --- INVENTORY -------- Ion Engine Light Treads Light Treads Heat Sink Targeting Computer Medium Armor Plating Medium Armor Plating Medium Armor Plating Shield Generator Particle Cannon Particle Cannon Grenade Launcher Grenade Launcher Mining Claw [Rating: 20] Favorites ----------- Power Ion Engine Engine Ion Engine Propulsion Light Treads Treads Light Treads Utility Large Storage Unit Device Weight Redist. System Storage Large Storage Unit Protection Medium Armor Plating Weapon Improved Medium Laser Energy Gun Improved Medium Laser Energy Cannon Particle Cannon Ballistic Gun Assault Rifle Launcher Grenade Launcher Build | -11 -10 -9 -9 ------- Run | Yrd Mat Mat Min Slots Evolved 2 | . . 2 . Power . | . . . . Propulsion . | . . . . Utility 1 | . . 1 . Weapon 1 | . . 1 . Parts Attached 36 | 6 12 10 8 Power 3 | 1 . 1 1 Engine 3 | 1 . 1 1 Core . | . . . . Reactor . | . . . . Propulsion 4 | 2 . 1 1 Treads 4 | 2 . 1 1 Leg . | . . . . Wheel . | . . . . Hover . | . . . . Flight . | . . . . Utility 6 | 1 3 2 . Device 1 | . . 1 . Storage 3 | 1 2 . . Processor . | . . . . Hackware . | . . . . Protection 2 | . 1 1 . Artifact . | . . . . Weapon 23 | 2 9 6 6 Energy Gun 8 | . . 4 4 Energy Cannon 4 | . 3 1 . Ballistic Gun 4 | 2 2 . . Ballistic Cannon . | . . . . Launcher 7 | . 4 1 2 Special Weapon . | . . . . Impact Weapon . | . . . . Slashing Weapon . | . . . . Piercing Weapon . | . . . . Special Melee Weapon . | . . . . Unidentified Prototypes 1 | . . 1 . Parts Lost 9 | . . . 9 Power 1 | . . . 1 Propulsion 3 | . . . 3 Utility 1 | . . . 1 Weapon 4 | . . . 4 Highest Loss Streak 6 | . . . 6 To Critical Strikes 1 | . . . 1 Average Slot Usage (%) 95 | . 92 99 87 Engine 12 | . 14 11 9 Treads 23 | . 28 22 17 Device 6 | . . 10 11 Storage 12 | . 14 11 11 Protection 9 | . 7 11 6 Energy Gun 13 | . . 23 22 Energy Cannon 7 | . 11 5 . Ballistic Gun 5 | . 13 . . Launcher 4 | . 3 3 7 Peak Build Rating 20 | 6 12 20 20 Average Rating 14 | 4 8 18 16 On Entrance 8 | . 6 11 18 Naked Turns . | . . . . Heaviest Build 43 | 14 40 43 41 Greatest Support 49 | 40 40 49 43 Greatest Overweight (x) 1 | . . . 1 Average Overweight (x) . | . . . . Largest Inventory Capacity 25 | 8 25 15 15 Average Capacity 13 | 7 12 15 15 Most Carried 15 | 2 15 15 15 Average Carried 12 | . 9 14 13 Final Capacity 15 | 8 15 15 15 Final Carried 15 | 1 15 15 10 Class Distribution -------------------- 55% | Tank 44% | Mutant Dominant Class ---------------- Mutant | -10/Materials Tank | -9/Materials Tank | -9/Mines Resources | -11 -10 -9 -9 ----------- Run | Yrd Mat Mat Min Matter Collected 784 | 249 266 223 46 Remotely . | . . . . Salvage Created 1395 | . 327 936 132 Parts 101 | . 34 59 8 Haulers Intercepted 4 | . 1 3 . Recyclers Shooed . | . . . . Parts Field Recycled . | . . . . Retrieved Matter . | . . . . Parts Self-Destructed . | . . . . Prevented . | . . . . Kills | -11 -10 -9 -9 ------- Run | Yrd Mat Mat Min Combat Hostiles Destroyed 45 | . 12 19 14 Guns 23 | . 3 12 8 Cannons 8 | . 1 7 . AOE 14 | . 8 . 6 Classes Destroyed 11 | . 6 4 1 Worker 3 | . 2 1 . Hauler 4 | . 1 3 . Recycler 2 | . . 2 . Mechanic 1 | . 1 . . Operator 1 | . . 1 . Watcher 3 | . 2 1 . Swarmer 20 | . 9 6 5 Grunt 11 | . 3 8 . Brawler 1 | . . 1 . Sentry 4 | . . 4 . Assembled 9 | . . . 9 Best Kill Streak 8 | . 6 8 8 Combat Bots Only 8 | . 5 5 8 Max Kills in Single Turn 3 | . 3 2 2 Gunslinging 1 | . . 1 1 Exploded 3 | . 3 . 2 Melee . | . . . . Uniques/NPCs Destroyed . | . . . . Combat | -11 -10 -9 -9 -------- Run | Yrd Mat Mat Min Hostile Shots Fired 174 | . 22 78 74 Missed 43 | . 9 20 14 Damage Taken 1768 | . 213 476 1079 Core 310 | . 92 62 156 Absorbed by Shields . | . . . . Ignored by Resistances 507 | . 63 141 303 Core Remaining (%) 81 | 100 63 . . Volleys Fired 123 | . 36 61 26 Largest 3 | . 2 3 3 Hottest 168 | . 136 168 168 Shots Fired 263 | . 56 151 56 Gun 187 | . 30 111 46 Cannon 48 | . 16 32 . Launcher 28 | . 10 8 10 Special . | . . . . Kinetic 30 | . 30 . . Thermal 205 | . 16 143 46 Explosive 28 | . 10 8 10 Electromagnetic . | . . . . Robot Hit Streak 36 | . 6 31 36 Robot Miss Streak 4 | . 1 2 4 Penetration Max . | . . . . Secondary Targets 6 | . . 4 2 Max Gunslinging Chain 2 | . . 2 1 Shots Hit Robots 123 | . 25 70 28 Core Hits 91 | . 26 34 31 Critical Kills . | . . . . Critical Parts Destroyed . | . . . . Critical Strikes 7 | . . 3 4 Burn 7 | . . 3 4 Melee Attacks . | . . . . Impact . | . . . . Slashing . | . . . . Piercing . | . . . . Sneak Attacks . | . . . . Combat Hostiles . | . . . . Follow-up Attacks . | . . . . Damage Inflicted 3452 | . 1090 1444 918 Guns 1645 | . 272 921 452 Cannons 501 | . 102 399 . Explosions 1297 | . 716 115 466 Melee . | . . . . Ramming 9 | . . 9 . Kinetic 272 | . 272 . . Thermal 1874 | . 102 1320 452 Explosive 1297 | . 716 115 466 Electromagnetic . | . . . . Impact . | . . . . Slashing . | . . . . Piercing . | . . . . Highest Corruption 1 | . 1 . . Average Corruption 1 | . 1 . . Corruption Purged . | . . . . Corruption Blocked . | . . . . Effects 1 | . 1 . . Matter Fused 1 | . 1 . . Overload Shots . | . . . . Overflow Damage 74 | . 66 . 8 Projectiles . | . . . . Explosions 74 | . 66 . 8 Melee . | . . . . Knockbacks . | . . . . Impact . | . . . . Kinetic . | . . . . Secondary . | . . . . Self-Inflicted Damage 102 | . 69 . 33 Shots 6 | . 4 . 2 Rammed 2 | . . 2 . Targets Rammed 2 | . . 2 . Kicked . | . . . . Crushed . | . . . . Highest Temperature 430 | . 252 407 430 Average Temperature 135 | . 83 145 131 Received Heat Transfer 288 | . 51 177 60 Effects 13 | . . 10 3 Shutdowns 2 | . . 2 . Energy Bleed 5 | . . 4 1 Interference 3 | . . 3 . Short Circuit 2 | . . . 2 Damage (minor) 1 | . . 1 . Siege Activations . | . . . . Robots Corrupted . | . . . . Combat Hostiles . | . . . . Parts Fried . | . . . . Impact Corruptions . | . . . . Robots Melted 1 | . . 1 . Combat Hostiles . | . . . . Parts Melted 2 | . . 2 . Heat Transferred 4255 | . 185 2812 1258 Parts Sabotaged . | . . . . Parts Stolen . | . . . . Parts Stripped . | . . . . Power Chain Reactions . | . . . . Alert | -11 -10 -9 -9 ------- Run | Yrd Mat Mat Min Peak Influence 351 | . 288 351 253 Initial 55 | . . 55 53 Average 163 | . 138 185 203 Maximum Alert Level 1 | . 1 1 1 Low Security (%) 61 | 100 81 47 44 Level 1 38 | . 18 52 55 Level 2 . | . . . . Level 3 . | . . . . Level 4 . | . . . . Level 5 . | . . . . High Security . | . . . . Max Security . | . . . . Squads Dispatched 4 | . 1 3 . Investigation 3 | . 1 2 . Extermination . | . . . . Reinforcement 1 | . . 1 . Assault . | . . . . Garrison . | . . . . Intercept . | . . . . Searches Triggered . | . . . . Construction Impeded 1 | . . 1 . Haulers Reinforced . | . . . . Active Scanning Responses . | . . . . Cargo Convoy Interrupts . | . . . . Stealth | -11 -10 -9 -9 --------- Run | Yrd Mat Mat Min Distress Signals 3 | . 2 1 . Communications Jammed . | . . . . Distress Signals . | . . . . Times Spotted 69 | . 18 24 27 Peak Tracking Total 8 | . 4 5 8 Tactical Retreats 2 | . 1 . 1 Traps | -11 -10 -9 -9 ------- Run | Yrd Mat Mat Min Traps Triggered 2 | . 2 . . Indirectly . | . . . . Trap Hack Attempts . | . . . . Triggered . | . . . . Disarmed . | . . . . Reprogrammed . | . . . . Reused . | . . . . Traps Extracted . | . . . . Installed . | . . . . Triggered . | . . . . Machines | -11 -10 -9 -9 ---------- Run | Yrd Mat Mat Min Machines Disabled 21 | . 10 8 3 Max in Single Turn 3 | . 3 3 1 Machines Repaired . | . . . . Machines Dismantled . | . . . . Machines Sabotaged . | . . . . Overloaded Fab Kills . | . . . . Hacking | -11 -10 -9 -9 --------- Run | Yrd Mat Mat Min Machines Accessed 14 | . 7 7 . Terminals 14 | . 7 7 . Fabricators . | . . . . Repair Stations . | . . . . Recycling Units . | . . . . Scanalyzers . | . . . . Garrison Access . | . . . . Total Hacks 36 | . 17 19 . Successful 17 | . 6 11 . Failed 19 | . 11 8 . Catastrophic 3 | . 2 1 . Database Lockouts . | . . . . Manual 27 | . 12 15 . Terminals 36 | . 17 19 . Fabricators . | . . . . Repair Stations . | . . . . Recycling Units . | . . . . Scanalyzers . | . . . . Garrison Access . | . . . . Terminal Hacks 17 | . 6 11 . Part Schematic 3 | . 1 2 . Robot Analysis 5 | . 3 2 . Prototype ID Bank 4 | . 1 3 . Terminal Index 1 | . 1 . . Unreport Threat 2 | . . 2 . Locate Traps 1 | . . 1 . Surveillance Status 1 | . . 1 . Fabricator Hacks . | . . . . Repair Station Hacks . | . . . . Recycling Unit Hacks . | . . . . Scanalyzer . | . . . . Garrison Access Hacks . | . . . . Unauthorized Hacks . | . . . . Terminals . | . . . . Fabricators . | . . . . Repair Stations . | . . . . Recycling Units . | . . . . Scanalyzers . | . . . . Garrison Access . | . . . . Data Cores Recovered 1 | . . 1 . Used . | . . . . Hacking Detections 12 | . 6 6 . Full Trace Events 7 | . 4 3 . Feedback Events . | . . . . Feedback Blocked . | . . . . Robot Schematics Acquired . | . . . . Robots Built . | . . . . Authchips . | . . . . Time . | . . . . Total Robot Build Rating . | . . . . Part Schematics Acquired 3 | . 1 2 . Parts Built . | . . . . Authchips . | . . . . Time . | . . . . Total Part Build Rating . | . . . . Parts Repaired . | . . . . Time . | . . . . Parts Recycled . | . . . . Recycled Matter . | . . . . Retrieved Matter . | . . . . Retrieved Components . | . . . . Parts Scanalyzed . | . . . . Part Schematics Acquired . | . . . . Parts Damaged . | . . . . Bothacking | -11 -10 -9 -9 ------------ Run | Yrd Mat Mat Min Used RIF Installer . | . . . . Robots Hacked . | . . . . Non-combat . | . . . . Combat . | . . . . Robot Hacks Applied . | . . . . Relay Couplers Released . | . . . . Fabnet Peak Effective % . | . . . . Robots Rewired . | . . . . Allies Hacked . | . . . . Hacks Repelled . | . . . . Allies | -11 -10 -9 -9 -------- Run | Yrd Mat Mat Min Total Allies . | . . . . Largest Group . | . . . . Highest-Rated Group . | . . . . Highest-Rated Ally . | . . . . Total Orders . | . . . . Ally Attacks . | . . . . Total Damage . | . . . . Kills . | . . . . Allies Corrupted . | . . . . Allies Melted . | . . . . Intel | -11 -10 -9 -9 ------- Run | Yrd Mat Mat Min Robot Analysis Total 5 | . 3 2 . Derelict Logs Recovered . | . . . . Drone Launches . | . . . . Drone Recoveries . | . . . . Exploration | -11 -10 -9 -9 ------------- Run | Yrd Mat Mat Min Turns Passed 2392 | 68 920 1194 210 Spaces Moved 1181 | 42 471 595 73 Core 10 | 10 . . . Treads 1171 | 32 471 595 73 Legs . | . . . . Wheels . | . . . . Hover . | . . . . Flight . | . . . . Fastest Speed 50 | 50 160 160 160 Average Speed 159 | 133 160 160 168 Slowest Speed 240 | 160 160 160 240 Overloaded Moves . | . . . . Propulsion Burnouts . | . . . . Robots Hopped . | . . . . Cave-ins Triggered . | . . . . Exploration Rate (%) 38 | 3 86 46 20 Regions Visited 3 Branch Regions 1 Pre-discovered Areas . | . . . . Known Exits Taken . | . . . . Unknown Exits Taken 3 | 1 1 1 . Scrap Searched 1 | . . . 1 Spaces Dug . | . . . . Terrain Destroyed 242 | . 68 95 79 Melee . | . . . . Projectile 4 | . . 4 . AOE 238 | . 68 91 79 Terrain Rammed . | . . . . Walls Destroyed . | . . . . Machines Disabled . | . . . . Actions | -11 -10 -9 -9 --------- Run | Yrd Mat Mat Min Total 1462 | 54 584 715 109 Wait 62 | . 37 23 2 Move 1178 | 41 470 594 73 Hop . | . . . . Pick Up 40 | 7 21 12 . Fast Attach 3 | . . 3 . Attach 23 | 6 8 4 5 Detach 2 | . 2 . . Swap 10 | . 4 3 3 Drop 19 | . 6 13 . Fire 123 | . 36 61 26 Melee . | . . . . Ram . | . . . . Kick . | . . . . Crush 2 | . . 2 . Escape Stasis . | . . . . Rewire . | . . . . Trap . | . . . . Miscellaneous . | . . . . Route ------- -11/Scrapyard -10/Materials (discovered 4 exits: *Mat x3 / [*Min]) -9/Materials (discovered 4 exits: [*Mat x2] / [*Min] / [*Sto]) -9/Mines History --------- Turn | Location | Event 4 | -11/Scrapyard | Discovered new exit (range 15) 69 | -11/Scrapyard | Entered Materials 224 | -10/Materials | Discovered new exit (range 11) 300 | -10/Materials | Discovered new exit (range 9) 326 | -10/Materials | Build established: Mutant 460 | -10/Materials | Discovered new exit (range 10) 715 | -10/Materials | Discovered new exit (range 7) 989 | -10/Materials | Entered another Materials area 989 | -9/Materials | Evolved 2 slots: Utility x1, Weapon x1 1301 | -9/Materials | Build established: Tank 1464 | -9/Materials | Discovered new exit (range 8) 1581 | -9/Materials | Discovered new exit (range 13) 1778 | -9/Materials | Discovered new exit (range 12) 1828 | -9/Materials | Discovered new exit (range 15) 2183 | -9/Materials | Entered Mines 2300 | -9/Mines | Assembled infested the area 2357 | -9/Mines | Lost 6 parts (1p2n1u2w) 2380 | -9/Mines | Core integrity fell below 50% 2393 | -9/Mines | Self-destructed Last Messages --------------- 02376_ The unstable cave ceiling collapses. 02376_ as-95722 destroyed. 02376_ Destroyed Asb. F-torch. 02377_ The unstable cave ceiling collapses. 02379_ as-95516 destroyed. 02381_ Ion Engine broken. 02381_ Overheating: Short circuit. 02383_ Imp. Medium Laser broken. 02383_ Overheating: Short circuit. 02383_ as-06127 destroyed. 02383_ as-66479 destroyed. 02385_ Overheating: Energy bleed (-14). 02385_ as-86983 destroyed. 02387_ as-68627 destroyed. 02390_ The unstable cave ceiling collapses. 02390_ Sml. Matter Pod crushed. 02391_ as-93640 destroyed. 02391_ Critical hit (Destroy). 02391_ Lgt. Treads destroyed. 02392_ Grenade Launcher destroyed. Map ----- +----------------------------------------------------+ | ?????????????????????????????????????????????????? | | ?????????????????????????????????????????????????? | | ?????????????????????????????????????????????????? | | ?????????????????????????????????????????????????? | | ?????????????????????????????????????????????????? | | ?????????????????????????????????????????????????? | | ?????????????????????????????????????????????????? | | ?????????????????????????????????????????????????? | | ?????????????????????????????????????????????????? | | ?????????????????????????????????????????????????? | | ?????????????????????????????????????????????????? | | ?????????????????????????????????????????????????? | | ??????????????????# ?????????????????????????????? | | ??????????????????# ????????????????????????????? | | ?????????????????## ????????????????????????????? | | ????????????????## ????????????? ????????????? | | ?????????????#### ???????????? ???????????? | | ????????????? a ###??????### ???????????? | | ?????????????*a a ?????? ?????????????? | | ?????????????? a ###### ??????????????? | | ???????????????# # # #???????????????? | | ???????????????# ###???? ????????? | | ???????????????### a # ###? ????????? | | ???????????????# a # # ????????? | | ?????????????????# a% !% ????????? | | ???????????????????# @ %%# ##?????????#### | | ???????????????????# # #= #?????????# | | ???????????????????# # ## # #?????????# | | ???????????????????## #a ####?????????#"" | | ????????????????????## # #############?#"" | | ?????????????????????# #?#""" | | ?????????????????????### # ############ #?# | | ???????????????????????## #??????????# #?#"" | | ????????????????????????## #??????????# #?#" " | | ?????????????????????????#######??????????# ###""" | | ??????????????????????????????????????????# | | ??????????????????????????????????????????##### | | ??????????????????????????????????????????????#### | | ?????????????????????????????????????????????????? | | ?????????????????????????????????????????????????? | | ?????????????????????????????????????????????????? | | ?????????????????????????????????????????????????? | | ?????????????????????????????????????????????????? | | | | | | | | | | | | | | | +----------------------------------------------------+ Best States ------------- Heat Dissipation 28 Energy Generation 10 Energy Capacity 250 Matter Stores 300 Matter Capacity 300 Sight Range 16 Terrain Scan Density 10 Additional Mass Support 6 Armor Coverage 225 Resistance: KI 20 Resistance: TH 20 Resistance: EX 20 Resistance: EM 20 Resistance: I 20 Resistance: S 20 Resistance: P 20 Evasion (%) 40 Recoil Reduction 2 Offensive Hacking 10 Item Schematics ----------------- Lrg. Storage Unit | -10/Materials | Hacked Imp. Treads | -9/Materials | Hacked Hrd. Light Armor Plating | -9/Materials | Hacked Robot Schematics ------------------ None Fabricated ------------ Nothing Alien Tech Used ----------------- None Achievements -------------- None Challenges ------------ None Game ------ Seed PersonalRingTriangulator Manual? 0 Play Time 00:33:02 Cumulative 30.4 hours Start 2024.08.16 @ 19:51:10 End 2024.08.16 @ 20:42:58 Sessions 1 Manual Loads 0 Difficulty Adventurer Special Mode None Game No. 18 Rogue 0 Adventurer 18 Explorer 0 Win Type - Total 0 Types 0/0/0/0/0/0/0/0/0 Lore% 19 Gallery% 34 Achievement% 35 Wizard Run 0 Options --------- Layout 1 ASCII 0 Keyboard 0 Movement Numpad Keybinds 0 Fullscreen 1 Font 48/Smallcaps Map View 50x35 Zoom Use 0% Tactical HUD 1 Map Filters NONE Filters NONE Steam 1 RUN: ebafe04c-164e-4797-8364-aee0111d1a9a